bitfinex/quotes_BTCUSD_20260311
["timestamp","ask_amount","ask_price","bid_price","bid_amount"]
[1773272900461,0.03144437,70177.0,70151.0,0.07164625]
[1773272900631,0.03144437,70177.0,70152.0,0.00144]
[1773272901235,0.07124569,70180.0,70152.0,0.00144]
[1773272901439,0.03144437,70181.0,70152.0,0.00144]
[1773272901639,0.00022001,70184.0,70152.0,0.00144]
[1773272901640,0.07146216,70184.0,70160.0,0.12799199]
[1773272901841,0.07146216,70184.0,70161.0,0.00144]
[1773272902045,0.07146216,70184.0,70162.0,0.00144]
[1773272902229,0.07146216,70184.0,70163.0,0.00144]
[1773272902422,0.1135781,70184.0,70164.0,0.00144]
[1773272902660,0.1135781,70184.0,70165.0,0.00144]
[1773272902866,0.1135781,70184.0,70151.0,0.07164625]
[1773272902867,0.1135781,70184.0,70166.0,0.00144]
[1773272903020,0.1135781,70184.0,70167.0,0.00144]
[1773272903212,0.1135781,70184.0,70168.0,0.00144]
[1773272903418,0.1135781,70184.0,70169.0,0.00144]
[1773272903624,0.07146216,70184.0,70169.0,0.00144]
[1773272903820,0.04211594,70183.0,70169.0,0.00144]
[1773272904695,0.04211594,70183.0,70170.0,0.07125552]
[1773272904998,0.07146216,70184.0,70170.0,0.07125552]
[1773272905460,0.0712413,70186.0,70170.0,0.07125552]
[1773272905461,0.07123645,70189.0,70171.0,0.02277429]
[1773272905660,0.07123585,70190.0,70171.0,0.02277429]
[1773272905864,0.11335048,70191.0,70171.0,0.02277429]
[1773272906894,0.07123521,70190.0,70172.0,0.07125349]
[1773272907338,0.11335115,70190.0,70172.0,0.07125349]
[1773272907536,0.07123521,70190.0,70172.0,0.07125349]
[1773272907754,0.04211594,70189.0,70172.0,0.07125349]
[1773272908347,0.07123431,70191.0,70172.0,0.07125349]
[1773272908545,0.00022001,70192.0,70172.0,0.07125349]
[1773272909707,0.04211594,70199.0,70172.0,0.07125349]
[1773272910163,0.04211594,70199.0,70172.0,0.07225349]
[1773272910366,0.04355594,70204.0,70180.0,0.12799199]
[1773272910676,0.04211594,70204.0,70181.0,0.00144]
[1773272911006,0.04211594,70207.0,70183.0,0.07124232]
[1773272911541,0.04211594,70207.0,70183.0,0.07135381]
[1773272911742,0.18691838,70208.0,70183.0,0.07135381]
[1773272912082,0.25813542,70208.0,70183.0,0.07135381]
[1773272912241,0.04211594,70207.0,70183.0,0.07135381]
[1773272912847,0.07121802,70207.0,70183.0,0.07235381]
[1773272913079,0.04211594,70206.0,70183.0,0.07235381]
[1773272913279,0.04211594,70206.0,70183.0,0.07135381]
[1773272913461,0.04211594,70206.0,70184.0,0.00144]
[1773272913674,0.04211594,70206.0,70185.0,0.00144]
[1773272913878,0.04211594,70206.0,70186.0,0.00144]
[1773272914274,0.04211594,70206.0,70183.0,0.07135381]
[1773272914480,0.04211594,70206.0,70184.0,0.00144]
[1773272914881,0.07121999,70205.0,70186.0,0.07123927]
[1773272915082,0.04211594,70204.0,70186.0,0.07123927]
[1773272917405,0.04211594,70203.0,70186.0,0.07123927]
[1773272922344,0.25957618,70208.0,70186.0,0.07123927]
[1773272922345,0.18691838,70208.0,70186.0,0.07123927]
[1773272922559,0.04211594,70214.0,70186.0,0.07123927]
[1773272923106,0.00166001,70218.0,70186.0,0.07123927]
[1773272923107,0.00022001,70218.0,70190.0,0.12799199]
[1773272923646,0.00022001,70218.0,70191.0,0.00144]
[1773272923996,0.00012001,70218.0,70191.0,0.00144]
[1773272924200,0.00012001,70218.0,70192.0,0.07123318]
[1773272924399,0.00066001,70218.0,70201.0,0.02347977]
[1773272924586,0.00066001,70218.0,70202.0,0.00144]
[1773272925355,0.04211594,70217.0,70202.0,0.00144]
[1773272925523,0.04211594,70217.0,70192.0,0.07123318]
[1773272925524,0.04211594,70217.0,70203.0,0.00144]
[1773272925705,0.04211594,70217.0,70204.0,0.00144]
[1773272925899,0.04211594,70217.0,70192.0,0.07123318]
[1773272926118,0.04211594,70217.0,70193.0,0.00144]
[1773272926529,0.04211594,70215.0,70194.0,0.07123115]
[1773272927122,0.04211594,70215.0,70195.0,0.00144]
[1773272927321,0.04211594,70215.0,70196.0,0.00144]
[1773272927527,0.04211594,70215.0,70193.0,0.07123115]
[1773272927528,0.04265594,70215.0,70193.0,0.07123115]
[1773272927757,0.04265594,70215.0,70194.0,0.00144]
[1773272928109,0.04265594,70215.0,70193.0,0.07123115]
[1773272928308,0.04211594,70213.0,70194.0,0.00144]
[1773272928507,0.04211594,70211.0,70195.0,0.07123014]
[1773272929455,0.04265594,70211.0,70195.0,0.07123014]
[1773272932708,0.04287595,70211.0,70195.0,0.07123014]
[1773272937636,0.00076001,70211.0,70195.0,0.07123014]
[1773272938500,0.04146271,70217.0,70195.0,0.07123014]
[1773272940906,0.00638794,70218.0,70195.0,0.07123014]
[1773272941311,0.00626793,70217.0,70195.0,0.07143014]
[1773272941708,0.00648794,70217.0,70195.0,0.07143014]
[1773272942560,0.00648794,70217.0,70193.0,0.01]
[1773272942561,0.12786226,70210.0,70193.0,1e-08]
[1773272942759,0.00022001,70217.0,70189.0,0.00144]
[1773272942760,0.12786226,70203.0,70189.0,0.00144]
[1773272942979,0.12786226,70203.0,70172.0,0.07125304]
[1773272942980,0.02270115,70199.0,70181.0,0.0712442]
[1773272943185,0.00626793,70198.0,70184.0,0.00144]
[1773272944969,0.00786506,70197.0,70185.0,0.07124029]
[1773272946196,0.0790369,70208.0,70185.0,0.07124029]
[1773272946396,0.00925971,70207.0,70185.0,0.07124029]
[1773272946930,0.00144,70206.0,70185.0,0.07124029]
[1773272947099,0.00781971,70203.0,70185.0,0.07124029]
[1773272947432,0.00781971,70203.0,70186.0,0.00144]
[1773272947786,0.00781971,70203.0,70187.0,0.00144]
[1773272948313,0.00781971,70203.0,70184.0,0.07124079]
[1773272948484,0.00781971,70203.0,70183.0,0.07155378]
[1773272948685,0.00781971,70203.0,70184.0,0.00144]
[1773272948886,0.00781971,70203.0,70185.0,0.00144]
[1773272949107,0.00626793,70201.0,70185.0,0.07267952]
[1773272949344,0.00626793,70201.0,70185.0,0.07123952]
[1773272949493,0.00626793,70201.0,70186.0,0.00144]
[1773272951041,0.07122507,70200.0,70187.0,0.07123826]
[1773272951190,0.07122507,70200.0,70186.0,0.07267888]
[1773272951191,0.00626793,70199.0,70186.0,0.00144]
[1773272951547,0.00626793,70199.0,70186.0,0.07267917]
[1773272951750,0.00626793,70199.0,70186.0,0.07267898]
[1773272952136,0.00626793,70199.0,70186.0,0.00144]
[1773272952314,0.00626793,70199.0,70186.0,0.07267881]
[1773272952513,0.00626793,70199.0,70186.0,0.00144]
[1773272952709,0.00626793,70195.0,70186.0,0.00144]
[1773272953019,0.07123115,70194.0,70184.0,0.0002]
[1773272953219,0.00626793,70193.0,70184.0,0.0002]
[1773272955175,0.00626793,70192.0,70184.0,0.0002]
[1773272957064,0.07122815,70197.0,70184.0,0.07144107]
[1773272957235,0.00626793,70196.0,70184.0,0.07144107]
[1773272958053,0.00144,70199.0,70184.0,0.07144107]
[1773272958266,0.07122476,70201.0,70184.0,0.07144107]
[1773272958267,0.00626793,70200.0,70184.0,0.07144107]
[1773272959257,0.00626793,70199.0,70184.0,0.07144107]
[1773272961405,0.00522001,70203.0,70184.0,0.07144107]
[1773272961707,0.00022001,70203.0,70184.0,0.07144107]
[1773272963268,0.005,70207.0,70184.0,0.07144107]
[1773272963919,0.005,70207.0,70185.0,0.00144]
[1773272964817,0.005,70207.0,70186.0,0.00144]
[1773272965262,0.005,70207.0,70187.0,0.07123826]
[1773272966292,0.00022001,70208.0,70187.0,0.07123826]
[1773272966546,0.0002309,70220.0,70190.0,0.12786226]
[1773272966750,0.01875146,70217.0,70190.0,0.12786226]
[1773272967101,0.01875146,70217.0,70191.0,0.00144]
[1773272967345,0.01875146,70217.0,70192.0,0.07123318]
[1773272968453,0.01862089,70216.0,70192.0,0.07123318]
[1773272968651,0.01862089,70216.0,70193.0,0.00144]
[1773272969055,0.01862089,70216.0,70192.0,0.07123318]
[1773272969276,0.07142844,70217.0,70195.0,0.07123014]
[1773272969277,0.00022001,70217.0,70195.0,0.07123014]
[1773272970027,0.0188409,70217.0,70195.0,0.07123014]
[1773272971228,0.0188409,70217.0,70197.0,0.07122811]
[1773272971741,0.0188409,70217.0,70198.0,0.00144]
[1773272972581,0.0188409,70217.0,70199.0,0.00144]
[1773272972961,0.0188409,70217.0,70197.0,0.07122811]
[1773272973287,0.0188409,70217.0,70198.0,0.00144]
[1773272973517,0.0188409,70217.0,70194.0,0.07123014]
[1773272973649,0.0188409,70217.0,70199.0,0.00144]
[1773272974108,0.0188409,70217.0,70194.0,0.07123014]
[1773272974464,0.0188409,70217.0,70200.0,0.00144]
[1773272974664,0.0188409,70217.0,70194.0,0.07123014]
[1773272974839,0.0188409,70217.0,70195.0,0.00144]
[1773272975357,0.0188409,70217.0,70196.0,0.00144]
[1773272975732,0.0188409,70217.0,70197.0,0.07266811]
[1773272975935,0.01893056,70216.0,70198.0,0.00144]
[1773272976141,0.02037056,70216.0,70196.0,0.07122811]
[1773272976514,0.01903565,70211.0,70197.0,0.00144]
[1773272976939,0.01903565,70211.0,70198.0,0.00144]
[1773272977541,0.01903565,70211.0,70199.0,0.0002]
[1773272977741,0.07121467,70211.0,70200.0,0.07122507]
[1773272977949,0.01903565,70210.0,70200.0,0.07122507]
[1773272980932,0.07,70212.0,70200.0,0.07122507]
[1773272981912,0.14121308,70212.0,70200.0,0.07122507]
[1773272982067,0.01926919,70211.0,70200.0,0.07122507]
[1773272984774,0.01944448,70210.0,70200.0,0.07122507]
[1773272986278,0.01944448,70210.0,70199.0,0.0004289]
[1773272986581,0.01944448,70210.0,70201.0,0.00144]
[1773272986793,0.01944448,70210.0,70199.0,0.07165417]
[1773272986995,0.01958478,70209.0,70200.0,0.00144]
[1773272987398,0.01958478,70209.0,70201.0,0.00144]
[1773272987982,0.01958478,70209.0,70201.0,0.0015211]
[1773272988299,0.14121332,70212.0,70201.0,0.0015211]
[1773272988500,0.0277515,70211.0,70201.0,0.0015211]
[1773272988888,0.00166001,70217.0,70202.0,0.08412294]
[1773272988889,0.00022001,70217.0,70202.0,0.08412294]
[1773272989946,5.501e-05,70217.0,70202.0,0.08412294]
[1773272990170,0.02797151,70225.0,70202.0,0.08412294]
[1773272990171,5.03e-06,70225.0,70207.0,0.12785024]
[1773272990288,5.03e-06,70225.0,70203.0,0.0128988]
[1773272990289,0.02783223,70225.0,70203.0,0.0128988]
[1773272990939,0.02783223,70225.0,70204.0,0.07122101]
[1773272991133,0.02783223,70225.0,70205.0,0.01289935]
[1773272991468,0.02783223,70225.0,70205.0,0.01301084]
[1773272991815,5.501e-05,70217.0,70205.0,0.01301084]
[1773272992015,5.501e-05,70217.0,70205.0,0.01309194]
[1773272993017,5.501e-05,70217.0,70206.0,0.07121898]
[1773272993211,5.501e-05,70217.0,70207.0,0.01433898]
[1773272993655,5.501e-05,70217.0,70207.0,0.01289898]
[1773272993847,0.02783223,70225.0,70208.0,0.00144]
[1773272993848,0.03382281,70224.0,70208.0,0.00144]
[1773272995010,0.09596091,70228.0,70208.0,0.00144]
[1773272995011,0.0113878,70244.0,70208.0,0.00144]
[1773272995187,0.0113878,70244.0,70210.0,0.12785024]
[1773272995188,0.03382281,70235.0,70210.0,0.12785024]
[1773272995357,0.03382281,70235.0,70209.0,0.07121594]
[1773272996136,0.03327062,70252.0,70221.0,0.206503]
[1773272996347,0.03327062,70252.0,70222.0,0.00144]
[1773272996553,0.08713965,70253.0,70223.0,0.00144]
[1773272996554,0.12785024,70250.0,70223.0,0.00144]
[1773272996753,0.03354671,70249.0,70224.0,0.00144]
[1773272997037,0.07117133,70256.0,70211.0,0.03234816]
[1773272997038,0.0001478,70260.0,70225.0,0.00144]
[1773272997238,0.0001478,70260.0,70220.0,0.12785024]
[1773272997239,0.0001478,70277.0,70220.0,0.12785024]
[1773272997240,0.0001478,70277.0,70230.0,0.12785024]
[1773272997241,0.03354671,70266.0,70230.0,0.12785024]
[1773272997432,0.03354671,70266.0,70223.0,0.10354686]
[1773272997433,0.00144,70265.0,70231.0,0.00144]
[1773272997660,0.00144,70265.0,70232.0,0.00144]
[1773272997661,0.03354671,70249.0,70232.0,0.00144]
[1773272997838,0.03354671,70249.0,70233.0,0.00144]
[1773272998052,0.03354671,70249.0,70230.0,0.04258315]
[1773272998245,0.03354671,70249.0,70223.0,0.0711987]
[1773272998246,0.06370394,70268.0,70223.0,0.0711987]
[1773272998247,0.04082594,70294.0,70239.0,0.04258315]
[1773272998451,0.10612727,70280.0,70251.0,0.03234816]
[1773272998651,0.04060593,70279.0,70252.0,0.00144]
[1773272999260,0.04060593,70279.0,70260.0,0.04258315]
[1773272999616,0.00011001,70267.0,70261.0,0.00144]
[1773272999780,5.501e-05,70267.0,70261.0,0.00144]
[1773273000154,5.501e-05,70267.0,70254.0,0.03234816]
[1773273000355,0.07173546,70281.0,70254.0,0.03234816]
[1773273000356,0.04013973,70279.0,70254.0,0.03234816]
[1773273000641,0.04013973,70279.0,70255.0,0.00144]
[1773273001160,0.04013973,70278.0,70256.0,0.07116829]
[1773273001907,0.04013973,70278.0,70261.0,0.001]
[1773273002288,0.04013973,70278.0,70256.0,0.07116829]
[1773273004710,0.04013973,70278.0,70254.0,0.10351645]
[1773273004711,0.04013973,70278.0,70254.0,0.03234816]
[1773273004908,0.04013973,70278.0,70238.0,0.07118653]
[1773273004909,0.04013973,70269.0,70238.0,0.07118653]
[1773273005225,0.12765066,70270.0,70243.0,0.00144]
[1773273005226,0.04013973,70267.0,70243.0,0.00144]
[1773273005396,0.04013973,70265.0,70244.0,0.00144]
[1773273006001,0.04013973,70265.0,70245.0,0.00144]
[1773273007427,0.04013973,70265.0,70246.0,0.07117843]
[1773273008154,0.07115989,70265.0,70246.0,0.07117843]
[1773273008447,0.04014523,70266.0,70246.0,0.07117843]
[1773273009005,0.02498121,70286.0,70246.0,0.07117843]
[1773273009006,0.00144,70273.0,70250.0,0.12765066]
[1773273009215,0.04014523,70275.0,70250.0,0.12765066]
[1773273009641,0.04014523,70275.0,70251.0,0.07117336]
[1773273009841,0.00059236,70281.0,70251.0,0.07117336]
[1773273009842,0.04073759,70281.0,70260.0,0.12765066]
[1773273010042,0.04073759,70281.0,70261.0,0.00144]
[1773273010875,0.00059236,70281.0,70261.0,0.00144]
[1773273011375,0.00059236,70281.0,70251.0,0.07117336]
[1773273011376,0.04059221,70277.0,70256.0,0.00144]
[1773273011721,0.04059221,70277.0,70257.0,0.07116728]
[1773273012104,0.04059221,70277.0,70260.0,0.001]
[1773273012306,0.04059221,70277.0,70261.0,0.001]
[1773273012669,0.04059221,70277.0,70257.0,0.07116728]
[1773273014314,0.00022001,70278.0,70257.0,0.07116728]
[1773273014516,0.00022001,70278.0,70258.0,0.02695435]
[1773273015969,0.00022001,70278.0,70255.0,0.07136728]
[1773273015970,0.07136638,70278.0,70255.0,0.07136728]
[1773273016269,0.07136638,70278.0,70256.0,0.00144]
[1773273016750,0.07136638,70278.0,70257.0,0.00144]
[1773273016908,0.07136638,70278.0,70255.0,0.07136728]
[1773273016909,0.07136638,70278.0,70255.0,0.07116829]
[1773273017112,0.12765066,70270.0,70250.0,0.07117399]
[1773273017334,0.00144,70269.0,70251.0,0.00144]
[1773273017502,0.00144,70268.0,70251.0,0.00144]
[1773273017703,0.00144,70268.0,70249.0,0.07117439]
[1773273017939,0.07115715,70267.0,70251.0,0.07117336]
[1773273018126,0.07115715,70267.0,70251.0,0.00144]
[1773273018610,0.07115715,70267.0,70250.0,0.07261437]
[1773273020629,0.07115715,70267.0,70250.0,0.07281437]
[1773273021914,0.07259715,70268.0,70251.0,0.02382356]
[1773273021915,0.00144,70268.0,70251.0,0.02382356]
[1773273022125,0.00144,70273.0,70251.0,0.02382356]
[1773273022545,0.00144,70273.0,70253.0,0.02382354]
[1773273022756,0.00022001,70278.0,70260.0,0.12765066]
[1773273022978,0.00022001,70278.0,70261.0,0.02526354]
[1773273023600,0.00022001,70278.0,70261.0,0.02382354]
[1773273023821,0.00022001,70278.0,70263.0,0.02382354]
[1773273024117,0.00059236,70281.0,70263.0,0.02382354]
[1773273024346,0.00022001,70286.0,70270.0,0.12765066]
[1773273024476,0.00022001,70286.0,70273.0,0.02397652]
[1773273024477,0.00011161,70286.0,70273.0,0.02397652]
[1773273025925,0.00011161,70286.0,70273.0,0.02597652]
[1773273026233,0.00011161,70286.0,70273.0,0.02497652]
[1773273026630,0.00011161,70286.0,70275.0,0.02207257]
[1773273027616,0.00011161,70286.0,70276.0,0.00144]
[1773273027788,0.00011161,70286.0,70277.0,0.02207257]
[1773273028616,0.00011161,70286.0,70279.0,0.02207256]
[1773273028821,0.00033162,70286.0,70279.0,0.02207256]
[1773273029016,0.00033162,70286.0,70278.0,0.07114602]
[1773273029017,0.00033162,70286.0,70280.0,0.00144]
[1773273029508,0.00033162,70286.0,70280.0,0.02351256]
[1773273030924,0.00033162,70286.0,70281.0,0.07114298]
[1773273031346,0.00033162,70286.0,70282.0,0.01276722]
[1773273031536,0.00033162,70286.0,70281.0,0.07114298]
[1773273031878,0.00033162,70286.0,70282.0,0.01276722]
[1773273032380,0.00033162,70286.0,70281.0,0.07114298]
[1773273032543,0.00033162,70286.0,70282.0,0.001]
[1773273032743,0.00033162,70286.0,70281.0,0.07114298]
[1773273033168,0.00033162,70286.0,70282.0,0.001]
[1773273033993,0.00033162,70286.0,70281.0,0.08391019]
[1773273034189,0.00033162,70286.0,70282.0,0.001]
[1773273034500,0.00033162,70286.0,70281.0,0.03213062]
[1773273034682,0.00033162,70286.0,70261.0,0.0186404]
[1773273034683,0.00033162,70286.0,70276.0,0.00144]
[1773273034983,0.00033162,70286.0,70277.0,0.07114703]
[1773273035130,0.00033162,70286.0,70282.0,0.002]
[1773273035542,0.00022001,70288.0,70283.0,0.01276722]
[1773273037965,0.00022001,70288.0,70284.0,0.08390715]
[1773273038641,0.00022001,70290.0,70285.0,0.01276721]
[1773273038852,0.00022001,70293.0,70285.0,0.01276721]
[1773273039055,0.00022001,70294.0,70285.0,0.01276721]
[1773273039900,0.01146001,70301.0,70286.0,0.07113792]
[1773273040049,0.01146001,70301.0,70287.0,0.01276721]
[1773273040256,0.01146001,70301.0,70289.0,0.01276308]
[1773273041356,0.0001532,70305.0,70290.0,0.12765066]
[1773273041556,0.0001532,70305.0,70291.0,0.01276308]
[1773273042033,1e-08,70314.0,70293.0,0.01276308]
[1773273042229,1e-08,70314.0,70292.0,0.07113184]
[1773273042230,0.34114938,70351.0,70292.0,0.07113184]
[1773273042231,0.0226374,70331.0,70306.0,0.01261249]
[1773273042438,0.09372984,70331.0,70308.0,0.01273686]
[1773273042667,0.09372984,70331.0,70308.0,0.0125863]
[1773273042847,0.09372984,70331.0,70309.0,0.00144]
[1773273042998,0.09372984,70331.0,70310.0,0.00144]
[1773273043619,0.09372984,70331.0,70308.0,0.0125863]
[1773273043825,0.09372984,70331.0,70309.0,0.00121998]
[1773273044030,0.09372984,70331.0,70308.0,0.00144]
[1773273044234,0.00144,70330.0,70306.0,0.00155155]
[1773273044432,0.09372984,70331.0,70307.0,0.00977809]
[1773273044669,0.00144,70330.0,70307.0,0.00977809]
[1773273045703,0.07108835,70336.0,70307.0,0.00977809]
[1773273046197,0.07138856,70338.0,70311.0,0.07111262]
[1773273046483,0.07138856,70338.0,70312.0,0.00977632]
[1773273046484,0.0713883,70338.0,70312.0,0.00977632]
[1773273046682,0.0713883,70338.0,70314.0,0.00977632]
[1773273049091,0.0713883,70338.0,70315.0,0.07110858]
[1773273049287,0.0713883,70338.0,70316.0,0.00977531]
[1773273051219,0.00022001,70330.0,70319.0,0.07110453]
[1773273051372,0.00022001,70330.0,70320.0,0.00144]
[1773273051569,0.00022001,70330.0,70320.0,0.0061162]
[1773273053295,0.00022001,70330.0,70322.0,0.005]
[1773273054910,0.00022001,70330.0,70323.0,0.00144]
[1773273055109,0.00022001,70330.0,70324.0,0.00144]
[1773273055440,0.07131342,70330.0,70324.0,0.00144]
[1773273055599,0.07131342,70330.0,70323.0,0.07109998]
[1773273055797,0.00022001,70330.0,70324.0,0.00144]
[1773273056002,0.07109442,70329.0,70322.0,0.00144]
[1773273057555,0.07109442,70329.0,70320.0,0.08110328]
[1773273057764,0.07109442,70329.0,70321.0,0.00144]
[1773273057938,0.07109442,70329.0,70308.0,0.07111524]
[1773273058137,0.07109442,70329.0,70309.0,0.005]
[1773273058340,0.07131443,70329.0,70309.0,0.005]
[1773273058746,0.07131443,70329.0,70308.0,0.07111524]
[1773273058747,0.00144,70328.0,70306.0,0.00011155]
[1773273058958,0.00144,70328.0,70305.0,0.00144]
[1773273059124,0.00155153,70328.0,70305.0,0.00144]
[1773273059737,0.07109644,70327.0,70305.0,0.00144]
[1773273060200,0.07109644,70327.0,70305.0,0.07255815]
[1773273061692,0.07109644,70327.0,70305.0,0.00144]
[1773273063075,0.07309644,70327.0,70305.0,0.00144]
[1773273063429,0.07309644,70327.0,70296.0,0.07112712]
[1773273063430,0.12750453,70320.0,70296.0,0.07112712]
[1773273063587,0.01476315,70319.0,70295.0,0.005]
[1773273063793,0.01476315,70319.0,70297.0,0.0725661]
[1773273063794,0.07110554,70318.0,70297.0,0.0725661]
[1773273063986,0.07110554,70318.0,70298.0,0.005]
[1773273064194,0.07110554,70318.0,70298.0,0.00644]
[1773273064621,0.07110554,70318.0,70299.0,0.00144]
[1773273066059,0.07110554,70318.0,70282.0,0.005]
[1773273066284,0.07110554,70318.0,70288.0,0.005]
[1773273066715,0.07210554,70318.0,70288.0,0.005]
[1773273066856,0.07110554,70318.0,70288.0,0.005]
[1773273067274,0.00144,70317.0,70288.0,0.005]
[1773273068267,0.00144,70317.0,70290.0,0.005]
[1773273068268,0.07110757,70316.0,70290.0,0.005]
[1773273069121,0.07110757,70316.0,70291.0,0.00144]
[1773273069331,0.07110757,70316.0,70292.0,0.005]
[1773273070553,0.07110757,70316.0,70292.0,0.0761317]
[1773273070701,0.07110757,70316.0,70293.0,0.00144]
[1773273071305,0.12750453,70310.0,70290.0,0.00144]
[1773273071504,0.00144,70309.0,70290.0,0.00144]
[1773273071717,0.00144,70309.0,70288.0,0.00144]
[1773273072149,0.00144,70309.0,70289.0,0.005]
[1773273073672,0.07111566,70308.0,70290.0,0.07613387]
[1773273074041,0.07111566,70308.0,70290.0,0.07113387]
[1773273075051,0.07111566,70308.0,70291.0,0.005]
[1773273075797,0.07111566,70308.0,70292.0,0.005]
[1773273077171,0.00144,70310.0,70292.0,0.005]
[1773273077692,0.07110959,70316.0,70292.0,0.005]
[1773273077693,0.07110554,70318.0,70293.0,0.07113083]
[1773273077857,0.00144,70317.0,70294.0,0.005]
[1773273078195,0.07132555,70318.0,70294.0,0.005]
[1773273078694,0.00022001,70318.0,70294.0,0.005]
[1773273079686,0.07110656,70317.0,70295.0,0.07256881]
[1773273079881,0.07110656,70317.0,70296.0,0.005]
[1773273080090,0.00022001,70318.0,70296.0,0.005]
[1773273080496,0.07132567,70318.0,70296.0,0.005]
[1773273081534,0.00022001,70318.0,70296.0,0.005]
[1773273081771,0.00022001,70318.0,70301.0,0.005]
[1773273081936,0.07131827,70326.0,70301.0,0.005]
[1773273081937,0.07109847,70325.0,70301.0,0.005]
[1773273082467,0.07109847,70325.0,70303.0,0.005]
[1773273083606,0.07131785,70326.0,70303.0,0.005]
[1773273083739,0.07131785,70326.0,70305.0,0.005]
[1773273084121,0.07131785,70326.0,70307.0,0.005]
[1773273084682,0.07131785,70326.0,70308.0,0.00144]
[1773273085036,0.07131785,70326.0,70308.0,0.00644]
[1773273085277,0.07131785,70326.0,70308.0,0.00144]
[1773273085462,0.07131785,70326.0,70309.0,0.005]
[1773273086147,0.07131785,70326.0,70310.0,0.07111363]
[1773273087194,0.00022001,70325.0,70311.0,0.00144]
[1773273088050,0.00037971,70325.0,70310.0,0.07111363]
[1773273088305,0.07109948,70324.0,70311.0,0.00144]
[1773273088802,0.07109948,70324.0,70310.0,0.07255363]
[1773273089008,0.07125918,70324.0,70310.0,0.07255363]
[1773273089613,0.07125918,70324.0,70310.0,0.07111363]
[1773273089969,0.07125918,70324.0,70308.0,0.07111512]
[1773273089970,0.00144,70323.0,70303.0,0.005]
[1773273090164,0.0711015,70322.0,70304.0,0.00144]
[1773273090363,0.0711015,70322.0,70302.0,0.00144]
[1773273090564,0.0711015,70322.0,70299.0,0.005]
[1773273090919,0.12750453,70320.0,70299.0,0.005]
[1773273091089,0.0001597,70320.0,70299.0,0.00644]
[1773273091492,0.0001597,70320.0,70300.0,0.005]
[1773273091812,0.0001597,70320.0,70293.0,0.07132983]
[1773273091813,0.12766423,70320.0,70293.0,0.0002]
[1773273092017,0.12766423,70320.0,70293.0,0.07133058]
[1773273092214,0.12766423,70320.0,70293.0,0.07133076]
[1773273092462,0.07110453,70319.0,70293.0,0.07133076]
[1773273092831,0.2120962,70319.0,70293.0,0.07133076]
[1773273093217,0.2122559,70319.0,70294.0,0.005]
[1773273094958,0.2122559,70319.0,70293.0,0.0002]
[1773273095396,0.2122559,70319.0,70295.0,0.005]
[1773273095676,0.14243167,70318.0,70297.0,0.005]
[1773273095831,0.00144,70318.0,70297.0,0.005]
[1773273096035,0.00144,70317.0,70297.0,0.005]
[1773273096422,0.0001597,70318.0,70299.0,0.005]
[1773273096631,0.00144,70316.0,70301.0,0.005]
[1773273097274,0.0015997,70316.0,70301.0,0.005]
[1773273099591,0.07110858,70315.0,70302.0,0.005]
[1773273100315,0.07126828,70315.0,70302.0,0.005]
[1773273100589,0.07126828,70315.0,70294.0,0.005]
[1773273100791,0.07126828,70315.0,70295.0,0.00144]
[1773273101312,0.07126828,70315.0,70294.0,0.00644]
[1773273102871,0.07126828,70315.0,70295.0,0.005]
[1773273104706,0.07126828,70315.0,70294.0,0.00144]
[1773273104882,0.07126828,70315.0,70293.0,0.0002]
[1773273105078,0.07126828,70315.0,70294.0,0.00144]
[1773273105277,0.07126828,70315.0,70294.0,0.00644]
[1773273105899,0.07126828,70315.0,70296.0,0.005]
[1773273106483,0.00463737,70314.0,70293.0,0.0002]
[1773273106688,0.00463737,70314.0,70290.0,0.00491025]
[1773273106891,0.00463737,70314.0,70290.0,0.07604392]
[1773273107265,0.00479707,70314.0,70294.0,0.0002]
[1773273108197,0.00479707,70314.0,70284.0,1e-08]
[1773273108198,0.00463737,70312.0,70284.0,1e-08]
[1773273108396,0.0711106,70313.0,70279.0,1e-08]
[1773273108397,0.12750453,70304.0,70279.0,1e-08]
[1773273108574,0.00144,70303.0,70279.0,1e-08]
[1773273108775,0.00144,70303.0,70278.0,1e-08]
[1773273109567,0.12750453,70304.0,70278.0,0.00011162]
[1773273109784,0.00144,70303.0,70278.0,0.00011162]
[1773273110004,0.07112173,70302.0,70278.0,0.00011162]
[1773273110990,0.07212173,70302.0,70278.0,0.00011162]
[1773273111434,0.07112173,70302.0,70278.0,0.00011162]
[1773273111637,0.07212173,70302.0,70278.0,0.00011162]
[1773273112015,0.07112173,70302.0,70278.0,0.00011162]
[1773273112231,0.00469265,70301.0,70276.0,1e-08]
[1773273112414,0.00480412,70301.0,70276.0,1e-08]
[1773273113407,0.00480412,70301.0,70272.0,0.0002]
[1773273113837,0.00480412,70301.0,70272.0,0.0049036]
[1773273114248,0.07112375,70300.0,70272.0,0.0002]
[1773273114551,0.005,70299.0,70272.0,0.0002]
[1773273115052,0.07112375,70300.0,70272.0,0.0002]
[1773273115053,0.005,70289.0,70272.0,0.0002]
[1773273115254,0.005,70287.0,70269.0,1e-08]
[1773273115455,0.005,70285.0,70269.0,1e-08]
[1773273116451,0.07113994,70284.0,70269.0,1e-08]
[1773273116683,0.005,70283.0,70269.0,1e-08]
[1773273117666,0.04254767,70280.0,70269.0,1e-08]
[1773273119975,0.071145,70279.0,70269.0,1e-08]
[1773273121158,0.07125642,70279.0,70269.0,1e-08]
[1773273123613,0.07125642,70279.0,70269.0,0.00020001]
[1773273124879,0.00011142,70279.0,70269.0,0.00020001]
[1773273125078,0.072585,70281.0,70269.0,0.07135509]
[1773273125276,0.071145,70281.0,70269.0,0.07172744]
[1773273125458,0.071145,70281.0,70269.0,0.00057236]
[1773273126039,0.076145,70281.0,70269.0,0.00057236]
[1773273126862,0.076145,70281.0,70265.0,0.0002]
[1773273127065,0.005,70280.0,70267.0,0.00144]
[1773273128829,0.005,70278.0,70267.0,0.00144]
[1773273129036,0.005,70278.0,70265.0,0.0002]
[1773273131088,0.05114504,70278.0,70265.0,0.07135877]
[1773273131322,0.005,70285.0,70265.0,0.07135877]
[1773273131323,0.07113286,70291.0,70268.0,0.04254466]
[1773273131524,0.07113492,70289.0,70268.0,0.04291671]
[1773273132266,0.00144,70288.0,70268.0,0.04291671]
[1773273132499,0.00144,70288.0,70269.0,0.00144]
[1773273133070,0.07113492,70289.0,70270.0,0.07115411]
[1773273133519,0.00144,70288.0,70270.0,0.07115411]
[1773273134126,0.07113286,70291.0,70278.0,0.04254466]
[1773273134325,0.07113286,70291.0,70279.0,0.00144]
[1773273135295,0.04254466,70290.0,70273.0,0.07115097]
[1773273135518,0.005,70289.0,70274.0,0.07114961]